Workbook

Sheet ДОХОД
A1: Утверждаю:
A2: Директор МБОУ «Ст-Озерсская оош» НМР
I4: на 01.07.2023
A5: РАСЧЕТЫ (ОБОСНОВАНИЯ) К ПЛАНУ ФИНАНСОВО-ХОЗЯЙСТВЕННОЙ ДЕЯТЕЛЬНОСТИ ГОСУДАРСТВЕННОГО УЧРЕЖДЕНИЯ (по доходам)
A6: 1. Расчеты (обоснования) выплат персоналу (строка 210)
A7: Код видов расходов ____________111
A8: Источник финансового обеспечения_______Бюджет
A9: 1.1. Расчеты (обоснования) расходов на оплату труда
A10: N п/п | B10: Должность, группа должностей | D10: Установленная численность, единиц | E10: Среднемесячный размер оплаты труда на одного работника, руб. | I10: Фонд оплаты труда в год, руб. (гр.3 х гр.4 х (1+ гр.8/100) х гр.9 х 12)
E11: всего | F11: в том числе:
F12: по должностному окладу | G12: по выплатам компенсационного характера | H12: по выплатам стимулирующего характера
A13: 1 | B13: 2 | D13: 3 | E13: 4 | F13: 5 | G13: 6 | H13: 7 | I13: 8
A14: 1 | B14: Директор | D14: 1 | E14: 30,000.00 | F14: 27,000.00 | H14: =E14-F14-G14 -> 3,000.00 | I14: =E14*12*D14 -> 360,000.00
A15: 2 | B15: Заместители директора | D15: 1 | E15: 21,600.00 | F15: 21,600.00 | G15: 0.00 | H15: =E15-F15-G15 -> 0.00 | I15: =E15*12*D15 -> 259,200.00
A16: 3 | B16: Педагогические работники | D16: 14.23 | E16: 29,826.31 | F16: 18,291.59 | G16: 1,388.10 | H16: 10,146.62 | I16: =E16*12*D16-1.1 -> 5,093,139.60
A17: 4 | B17: Учебно-вспомогательный перс. | D17: 1 | E17: 18,887.73 | F17: 17,845.50 | G17: 694.00 | H17: 348.23 | I17: =E17*12*D17 -> 226,652.76
A18: 5 | B18: Обслуживающий персонал | D18: 9 | E18: 17,363.06 | F18: 15,279.00 | G18: 1,459.99 | H18: 624.07 | I18: =E18*12*D18 -> 1,875,210.48
A19: ИТОГО | D19: =D14+D15+D16+D17+D18 -> 26.23 | E19: Х | F19: X | G19: Х | H19: X | I19: =I14+I15+I16+I17+I18 -> 7,814,202.84 | L19: 7,814,202.84
L20: =L19-I19 -> 0.00
A21: 1. Расчеты (обоснования) выплат персоналу (строка 210)
A22: Код видов расходов _____________________________________________ | F22: 112
A23: Источник финансового обеспечения________________________________ | F23: Бюджет
A24: 1.2. Расчеты (обоснования) выплат персоналу при направлении в служебные командировки
A25: N п/п | B25: Наименование расходов | E25: Средний размер выплаты на одного работника в день, руб. | G25: Количество работников, чел. | H25: Количество дней | I25: Сумма, руб. (гр. 3 х гр.4 х гр.5)
A26: 1 | B26: 2 | E26: 3 | G26: 4 | H26: 5 | I26: 6
A27: 1 | B27: Командировачные | I27: 22000
A29: ИТОГО | E29: x | G29: x | H29: x | I29: =SUM(I27:J28) -> 22000
A31: 1. Расчеты (обоснования) выплат персоналу
A32: Код видов расходов ____119_________________________________________
A33: Источник финансового обеспечения_______Бюджет_________________________
A34: 1.4. Расчет (обоснование) страховых взносов на обязательное страхование в Пенсионный фонд Российской Федерации, Фонд социального страхования Российской Федерации, в Федеральный фонд обязательного медицинского страхования
A35: N п/п | B35: Наименование государственного внебюджетного фонда | G35: Размер базы для начисления страховых взносов, руб. | I35: Сумма взноса, руб.
A36: 1 | B36: 2 | G36: 3 | I36: 4
A37: 1 | B37: Страховые взносы в Пенсионный фонд Российской Федерации, всего | G37: X | I37: =I38 -> 1719124.63
B38: в том числе: | G38: =I19 -> 7,814,202.84 | I38: =I50/30.2*22 -> 1719124.63
B39: по ставке 22,0%
B40: по ставке 10,0%
B41: с применением пониженных тарифов взносов в Пенсионный фонд Российской Федерации для отдельных категорий плательщиков
A42: 2 | B42: Страховые взносы в Фонд социального страхования Российской Федерации, всего | G42: X | I42: =I43+I46 -> 242240.29
B43: в том числе: | G43: =G38 -> 7,814,202.84 | I43: =I50/30.2*2.9 -> 226611.88
B44: обязательное социальное страхование на случай временной нетрудоспособности и в связи с материнством по ставке 2,9%
B45: с применением ставки взносов в Фонд социального страхования Российской Федерации по ставке 0,0%
B46: обязательное социальное страхование от несчастных случаев на производстве и профессиональных заболеваний по ставке 0,2% | G46: =G43 -> 7,814,202.84 | I46: =I50/30.2*0.2 -> 15628.41
B47: обязательное социальное страхование от несчастных случаев на производстве и профессиональных заболеваний по ставке 0, ___% <*>
B48: обязательное социальное страхование от несчастных случаев на производстве и профессиональных заболеваний по ставке 0,___% <*>
A49: 3 | B49: Страховые взносы в Федеральный фонд обязательного медицинского страхования, всего (по ставке 5,1%) | G49: =G46 -> 7,814,202.84 | I49: =I50/30.2*5.1 -> 398524.35
A50: Итого: | G50: X | I50: 2359889.26
A52: 2. Расчеты (обоснования) расходов на социальные и иные выплаты населению
A53: Код видов расходов __112___________________________________________
A54: Источник финансового обеспечения________________________________
A55: N п/п | B55: Наименование показателя | F55: Размер одной выплаты, руб. | H55: Количество выплат в год | J55: Сумма, руб.
A56: 1 | B56: 2 | F56: 3 | H56: 4 | J56: 5
A57: 1 | B57: Льготы на коммунальные услуги | F57: =J57/H57 -> 0 | H57: 12 | J57: 0
A58: ИТОГО | F58: X | H58: X | J58: =J57 -> 0
A60: 3. Расчеты (обоснования) расходов на уплату налогов, сборов и иных платежей
A61: Код видов расходов 851,852,853
A62: Источник финансового обеспечения_Бюджет_____________________
A64: N п/п | B64: Наименование расходов | E64: Налоговая база, руб. | G64: Ставка налога, % | I64: Сумма исчисленного налога, подлежащего уплате, руб.
A65: 1 | B65: 2 | E65: 3 | G65: 4 | I65: 5
A66: 1 | B66: Налог на имущество | E66: 999818.18 | G66: 2.2 | I66: 24584
A67: 2 | B67: Земельный налог | E67: =I67/G67*100 -> 10599661.02 | G67: 0.59 | I67: 62538
A68: 3 | B68: Экологический налог
A69: 4 | B69: Транспортный н-г
A70: Итого: | I70: =SUM(I66:J69) -> 87122
A72: 6. Расчеты (обоснования) на закупку товаров, работ, услуг
A73: Код видов расходов 221,223,225,226,340
A74: Источник финансового обеспечения_______Бюджет
A75: 6.1. Расчет (обоснование) расходов на оплату услуг связи (221)
A76: N п/п | B76: Наименование расходов | E76: Количество номеров | F76: Количество платежей в год | H76: Стоимость за единицу, руб. | J76: Сумма, руб.
A77: 1 | B77: 2 | E77: 3 | F77: 4 | H77: 5 | J77: 6
A78: 1 | B78: Абонентская плата за номер | E78: 2 | F78: 12 | H78: =J78/F78 -> 4500.00 | J78: 54000.00
A79: 2 | B79: Предоставление мест.соед | E79: 2 | F79: 12 | H79: =J79/F79 -> 0.00 | J79: 0.00
A80: 3 | B80: Огранич.исход.связи | E80: 2 | F80: 12 | H80: =J80/F80 -> 0.00 | J80: 0.00
B81: Итого: | E81: X | F81: X | H81: X | J81: =SUM(J78:J80) -> 54000.00
A83: 6.2. Расчет (обоснование) расходов на оплату транспортных услуг (222)
A84: N п/п | B84: Наименование расходов | E84: Количество услуг перевозки | G84: Цена услуги перевозки, руб. | I84: Сумма, руб. (гр.3 х гр.4)
A85: 1 | B85: 2 | E85: 3 | G85: 4 | I85: 5
A86: 1
A87: Итого: | I87: =I86 -> 0.00
A88: 6.3. Расчет (обоснование) расходов на оплату коммунальных услуг (223)
A89: N п/п | B89: Наименование показателя | D89: Размер потребления ресурсов | F89: Тариф (с учетом НДС), руб. | H89: Индексация, % | I89: Сумма, руб
A90: 1 | B90: 2 | D90: 3 | F90: 4 | H90: 5 | I90: 6
A91: 1 | B91: Электроснабжение | D91: =I91/F91 -> 41428.57 | F91: 7.00 | I91: 290000.00
A92: 2 | B92: Теплоснабжение | D92: =I92/F92 -> 702.41 | F92: 1969.74 | I92: 1383571.48
A93: 3 | B93: Вывоз ТКО | I93: 7002.23
A94: 4 | B94: Водоснабжение | I94: 18432.00
A95: Итого: | D95: X | F95: X | H95: X | I95: =SUM(I91:J94) -> 1699005.71
A96: 6.5. Расчет (обоснование) расходов на оплату работ, услуг по содержанию имущества (225)
A97: N п/п | B97: Наименование показателя | F97: Объект | H97: Количество работ (услуг) | I97: Стоимость работ (услуг), руб.
A98: 1 | B98: 2 | F98: 3 | H98: 4 | I98: 5
A99: 1 | B99: Техобслуживание охранной сигн. | F99: Школа,доу | H99: 12 | I99: 23554.32
A100: 2 | B100: Техобслуживание пожарной сигн. | F100: Школа,доу | H100: 12 | I100: 18590
A101: 3 | B101: Дезинфекция, дератизация | F101: Школа,доу | H101: 12 | I101: 26700
A102: 4 | B102: Зарядка огнетушителей | F102: Школа,доу | H102: 12
A103: 5 | B103: Техобслуживание стрельца-монит | F103: Школа,доу | H103: 12 | I103: 67200
A104: 6 | B104: Техобслуживание видеонаблюдения | I104: 57600
A105: Итого: | F105: X | H105: X | I105: =SUM(I99:J104) -> 193644.32
A107: 6.6. Расчет (обоснование) расходов на оплату прочих работ, услуг (226)
A108: N п/п | B108: Наименование показателя | F108: Количество договоров | H108: Стоимость услуги, руб.
A109: 1 | B109: 2 | F109: 3 | H109: 4
A110: 1 | B110: Услуга вневедомственной охраны | F110: Х | H110: 80942.4
A111: 2 | B111: Производственный контроль | F111: Х | H111: 69200.94
A112: 3 | B112: Регистр на бирж площадке
A113: 4 | B113: Питание | H113: 148125.96
A114: 5 | B114: Тех надзор | H114: 4216.7
A115: Итого: | F115: Х | H115: =SUM(H110:I114) -> 302486
A117: 6.7. Расчет (обоснование) расходов на приобретение основных средств и материальных запасов (340)
A118: N п/п | B118: Наименование расходов | F118: Количество | G118: Средняя стоимость, руб. | I118: Сумма, руб.
B119: 1 | F119: 2 | G119: 3 | I119: 4
A120: 1 | B120: Субвенция на учебники | I120: 44645
A121: 2 | B121: Содержание здания | I121: 0
A122: 3 | B122: Моющие
A123: Итого: | G123: X | I123: =SUM(I120:J122) -> 44645
B125: Резерв з/п
J128: =I19+I29+I50+J58+I70+J81+I95+I105+H115+I123+I125 -> 12,576,995.13 | L128: 12,576,995.13
L129: =L128-J128 -> 0.00

Sheet РАСХОД
A1: Утверждаю:
A2: Директор МБОУ «Ст-Озерсская оош» НМР
I4: на 01.07.2023
A5: РАСЧЕТЫ (ОБОСНОВАНИЯ) К ПЛАНУ ФИНАНСОВО-ХОЗЯЙСТВЕННОЙ ДЕЯТЕЛЬНОСТИ ГОСУДАРСТВЕННОГО УЧРЕЖДЕНИЯ (по доходам)
A6: 1. Расчеты (обоснования) выплат персоналу (строка 210)
A7: Код видов расходов ____________111
A8: Источник финансового обеспечения_______Бюджет
A9: 1.1. Расчеты (обоснования) расходов на оплату труда
A10: N п/п | B10: Должность, группа должностей | D10: Установленная численность, единиц | E10: Среднемесячный размер оплаты труда на одного работника, руб. | I10: Фонд оплаты труда в год, руб. (гр.3 х гр.4 х (1+ гр.8/100) х гр.9 х 12)
E11: всего | F11: в том числе:
F12: по должностному окладу | G12: по выплатам компенсационного характера | H12: по выплатам стимулирующего характера
A13: 1 | B13: 2 | D13: 3 | E13: 4 | F13: 5 | G13: 6 | H13: 7 | I13: 8
A14: 1 | B14: Директор | D14: 1 | E14: 30,000.00 | F14: 27,000.00 | H14: =E14-F14-G14 -> 3,000.00 | I14: =E14*12*D14 -> 360,000.00
A15: 2 | B15: Заместители директора | D15: 1 | E15: 21,600.00 | F15: 21,600.00 | G15: 0.00 | H15: =E15-F15-G15 -> 0.00 | I15: =E15*12*D15 -> 259,200.00
A16: 3 | B16: Педагогические работники | D16: 14.23 | E16: 30,545.83 | F16: 18,291.59 | G16: 1,388.10 | H16: 10,866.14 | I16: =E16*12*D16-2.16 -> 5,216,003.77
A17: 4 | B17: Учебно-вспомогательный перс. | D17: 1 | E17: 18,887.73 | F17: 17,845.50 | G17: 694.00 | H17: 348.23 | I17: =E17*12*D17 -> 226,652.76
A18: 5 | B18: Обслуживающий персонал | D18: 9 | E18: 17,363.06 | F18: 15,279.00 | G18: 1,459.99 | H18: 624.07 | I18: =E18*12*D18 -> 1,875,210.48
A19: ИТОГО | D19: =D14+D15+D16+D17+D18 -> 26.23 | E19: Х | F19: X | G19: Х | H19: X | I19: =I14+I15+I16+I17+I18 -> 7,937,067.01 | L19: 7,937,067.01
L20: =L19-I19 -> -0.00
A21: 1. Расчеты (обоснования) выплат персоналу (строка 210)
A22: Код видов расходов _____________________________________________ | F22: 112
A23: Источник финансового обеспечения________________________________ | F23: Бюджет
A24: 1.2. Расчеты (обоснования) выплат персоналу при направлении в служебные командировки
A25: N п/п | B25: Наименование расходов | E25: Средний размер выплаты на одного работника в день, руб. | G25: Количество работников, чел. | H25: Количество дней | I25: Сумма, руб. (гр. 3 х гр.4 х гр.5)
A26: 1 | B26: 2 | E26: 3 | G26: 4 | H26: 5 | I26: 6
A27: 1 | B27: Командировачные | I27: 22000
A29: ИТОГО | E29: x | G29: x | H29: x | I29: =SUM(I27:J28) -> 22000
A31: 1. Расчеты (обоснования) выплат персоналу
A32: Код видов расходов ____119_________________________________________
A33: Источник финансового обеспечения_______Бюджет_________________________
A34: 1.4. Расчет (обоснование) страховых взносов на обязательное страхование в Пенсионный фонд Российской Федерации, Фонд социального страхования Российской Федерации, в Федеральный фонд обязательного медицинского страхования
A35: N п/п | B35: Наименование государственного внебюджетного фонда | G35: Размер базы для начисления страховых взносов, руб. | I35: Сумма взноса, руб.
A36: 1 | B36: 2 | G36: 3 | I36: 4
A37: 1 | B37: Страховые взносы в Пенсионный фонд Российской Федерации, всего | G37: X | I37: =I38 -> 1746154.74
B38: в том числе: | G38: =I19 -> 7,937,067.01 | I38: =I50/30.2*22 -> 1746154.74
B39: по ставке 22,0%
B40: по ставке 10,0%
B41: с применением пониженных тарифов взносов в Пенсионный фонд Российской Федерации для отдельных категорий плательщиков
A42: 2 | B42: Страховые взносы в Фонд социального страхования Российской Федерации, всего | G42: X | I42: =I43+I46 -> 246049.08
B43: в том числе: | G43: =G38 -> 7,937,067.01 | I43: =I50/30.2*2.9 -> 230174.94
B44: обязательное социальное страхование на случай временной нетрудоспособности и в связи с материнством по ставке 2,9%
B45: с применением ставки взносов в Фонд социального страхования Российской Федерации по ставке 0,0%
B46: обязательное социальное страхование от несчастных случаев на производстве и профессиональных заболеваний по ставке 0,2% | G46: =G43 -> 7,937,067.01 | I46: =I50/30.2*0.2 -> 15874.13
B47: обязательное социальное страхование от несчастных случаев на производстве и профессиональных заболеваний по ставке 0, ___% <*>
B48: обязательное социальное страхование от несчастных случаев на производстве и профессиональных заболеваний по ставке 0,___% <*>
A49: 3 | B49: Страховые взносы в Федеральный фонд обязательного медицинского страхования, всего (по ставке 5,1%) | G49: =G46 -> 7,937,067.01 | I49: =I50/30.2*5.1 -> 404790.42
A50: Итого: | G50: X | I50: 2396994.24
A52: 2. Расчеты (обоснования) расходов на социальные и иные выплаты населению
A53: Код видов расходов __112___________________________________________
A54: Источник финансового обеспечения________________________________
A55: N п/п | B55: Наименование показателя | F55: Размер одной выплаты, руб. | H55: Количество выплат в год | J55: Сумма, руб.
A56: 1 | B56: 2 | F56: 3 | H56: 4 | J56: 5
A57: 1 | B57: Льготы на коммунальные услуги | F57: =J57/H57 -> 0 | H57: 12 | J57: 0
A58: ИТОГО | F58: X | H58: X | J58: =J57 -> 0
A60: 3. Расчеты (обоснования) расходов на уплату налогов, сборов и иных платежей
A61: Код видов расходов 851,852,853
A62: Источник финансового обеспечения_Бюджет_____________________
A64: N п/п | B64: Наименование расходов | E64: Налоговая база, руб. | G64: Ставка налога, % | I64: Сумма исчисленного налога, подлежащего уплате, руб.
A65: 1 | B65: 2 | E65: 3 | G65: 4 | I65: 5
A66: 1 | B66: Налог на имущество | E66: 999818.18 | G66: 2.2 | I66: 24584
A67: 2 | B67: Земельный налог | E67: =I67/G67*100 -> 10599661.02 | G67: 0.59 | I67: 62538
A68: 3 | B68: Экологический налог
A69: 4 | B69: Прочие расходы по безвозмездным перечисл | I69: 71913.93
A70: Итого: | I70: =SUM(I66:J69) -> 159035.93
A72: 6. Расчеты (обоснования) на закупку товаров, работ, услуг
A73: Код видов расходов 221,223,225,226,340
A74: Источник финансового обеспечения_______Бюджет
A75: 6.1. Расчет (обоснование) расходов на оплату услуг связи (221)
A76: N п/п | B76: Наименование расходов | E76: Количество номеров | F76: Количество платежей в год | H76: Стоимость за единицу, руб. | J76: Сумма, руб.
A77: 1 | B77: 2 | E77: 3 | F77: 4 | H77: 5 | J77: 6
A78: 1 | B78: Абонентская плата за номер | E78: 2 | F78: 12 | H78: =J78/F78 -> 4500.00 | J78: 54000.00
A79: 2 | B79: Предоставление мест.соед | E79: 2 | F79: 12 | H79: =J79/F79 -> 0.00 | J79: 0.00
A80: 3 | B80: Огранич.исход.связи | E80: 2 | F80: 12 | H80: =J80/F80 -> 0.00 | J80: 0.00
B81: Итого: | E81: X | F81: X | H81: X | J81: =SUM(J78:J80) -> 54000.00
A83: 6.2. Расчет (обоснование) расходов на оплату транспортных услуг (222)
A84: N п/п | B84: Наименование расходов | E84: Количество услуг перевозки | G84: Цена услуги перевозки, руб. | I84: Сумма, руб. (гр.3 х гр.4)
A85: 1 | B85: 2 | E85: 3 | G85: 4 | I85: 5
A86: 1
A87: Итого: | I87: =I86 -> 0.00
A88: 6.3. Расчет (обоснование) расходов на оплату коммунальных услуг (223)
A89: N п/п | B89: Наименование показателя | D89: Размер потребления ресурсов | F89: Тариф (с учетом НДС), руб. | H89: Индексация, % | I89: Сумма, руб
A90: 1 | B90: 2 | D90: 3 | F90: 4 | H90: 5 | I90: 6
A91: 1 | B91: Электроснабжение | D91: =I91/F91 -> 41428.57 | F91: 7.00 | I91: 290000.00
A92: 2 | B92: Теплоснабжение | D92: =I92/F92 -> 702.41 | F92: 1969.74 | I92: 1383571.48
A93: 3 | B93: Вывоз ТКО | I93: 7002.23
A94: 4 | B94: Водоснабжение | I94: 18432.00
A95: Итого: | D95: X | F95: X | H95: X | I95: =SUM(I91:J94) -> 1699005.71
A96: 6.5. Расчет (обоснование) расходов на оплату работ, услуг по содержанию имущества (225)
A97: N п/п | B97: Наименование показателя | F97: Объект | H97: Количество работ (услуг) | I97: Стоимость работ (услуг), руб.
A98: 1 | B98: 2 | F98: 3 | H98: 4 | I98: 5
A99: 1 | B99: Техобслуживание охранной сигн. | F99: Школа,доу | H99: 12 | I99: 23554.32
A100: 2 | B100: Техобслуживание пожарной сигн. | F100: Школа,доу | H100: 12 | I100: 18590
A101: 3 | B101: Дезинфекция, дератизация | F101: Школа,доу | H101: 12 | I101: 26700
A102: 4 | B102: Зарядка огнетушителей | F102: Школа,доу | H102: 12
A103: 5 | B103: Техобслуживание стрельца-монит | F103: Школа,доу | H103: 12 | I103: 67200
A104: 6 | B104: Техобслуживание видеонаблюдения | I104: 57600
A105: Итого: | F105: X | H105: X | I105: =SUM(I99:J104) -> 193644.32
A107: 6.6. Расчет (обоснование) расходов на оплату прочих работ, услуг (226)
A108: N п/п | B108: Наименование показателя | F108: Количество договоров | H108: Стоимость услуги, руб.
A109: 1 | B109: 2 | F109: 3 | H109: 4
A110: 1 | B110: Услуга вневедомственной охраны | F110: Х | H110: 80942.4
A111: 2 | B111: Производственный контроль | F111: Х | H111: 69200.94
A112: 3 | B112: Регистр на бирж площадке
A113: 4 | B113: Питание | H113: 254821.48
A114: 5 | B114: Тех надзор | H114: 4216.7
A115: Итого: | F115: Х | H115: =SUM(H110:I114) -> 409181.52
A117: 6.7. Расчет (обоснование) расходов на приобретение основных средств и материальных запасов (340)
A118: N п/п | B118: Наименование расходов | F118: Количество | G118: Средняя стоимость, руб. | I118: Сумма, руб.
B119: 1 | F119: 2 | G119: 3 | I119: 4
A120: 1 | B120: Субвенция на учебники | I120: 44645
A121: 2 | B121: Содержание здания | I121: 0
A122: 3 | B122: Моющие
A123: Итого: | G123: X | I123: =SUM(I120:J122) -> 44645
B125: Резерв з/п
J128: =I19+I29+I50+J58+I70+J81+I95+I105+H115+I123+I125 -> 12,915,573.73 | L128: 12,915,573.73
L129: =L128-J128 -> -0.00

Sheet ИНЫЕ
A1: Утверждаю:
A2: Директор МБОУ «Ст-Озерсская оош» НМР
I4: на 01.07.2023
A5: РАСЧЕТЫ (ОБОСНОВАНИЯ) К ПЛАНУ ФИНАНСОВО-ХОЗЯЙСТВЕННОЙ ДЕЯТЕЛЬНОСТИ ГОСУДАРСТВЕННОГО УЧРЕЖДЕНИЯ (иные доход)
A6: 1. Расчеты (обоснования) выплат персоналу (строка 210)
A7: Код видов расходов ____________111
A8: Источник финансового обеспечения_______Иные
A9: 1.1. Расчеты (обоснования) расходов на оплату труда
A10: N п/п | B10: Должность, группа должностей | D10: Установленная численность, единиц | E10: Среднемесячный размер оплаты труда на одного работника, руб. | I10: Фонд оплаты труда в год, руб. (гр.3 х гр.4 х (1+ гр.8/100) х гр.9 х 12)
E11: всего | F11: в том числе:
F12: по должностному окладу | G12: по выплатам компенсационного характера | H12: по выплатам стимулирующего характера
A13: 1 | B13: 2 | D13: 3 | E13: 4 | F13: 5 | G13: 6 | H13: 7 | I13: 8
A14: 1 | B14: Директор | H14: =E14-F14-G14 -> 0.00 | I14: =E14*12*D14 -> 0.00
A15: 2 | B15: Заместители директора | H15: =E15-F15-G15 -> 0.00 | I15: =E15*12*D15 -> 0.00
A16: 3 | B16: Педагогические работники | H16: 0.00 | I16: 0.00
A17: 4 | B17: Учебно-вспомогательный перс. | H17: 0.00 | I17: =E17*12*D17 -> 0.00
A18: 5 | B18: Обслуживающий персонал | H18: 0.00 | I18: =E18*12*D18 -> 0.00
A19: ИТОГО | D19: X | E19: Х | F19: X | G19: 3.00 | H19: X | I19: =SUM(I14:J18) -> 0.00
A21: 1. Расчеты (обоснования) выплат персоналу (строка 210)
A22: Код видов расходов _____________________________________________ | F22: 112
A23: Источник финансового обеспечения________________________________ | F23: Бюджет
A24: 1.2. Расчеты (обоснования) выплат персоналу при направлении в служебные командировки
A25: N п/п | B25: Наименование расходов | E25: Средний размер выплаты на одного работника в день, руб. | G25: Количество работников, чел. | H25: Количество дней | I25: Сумма, руб. (гр. 3 х гр.4 х гр.5)
A26: 1 | B26: 2 | E26: 3 | G26: 4 | H26: 5 | I26: 6
A27: 1 | B27: Командировачные
A29: ИТОГО | E29: x | G29: x | H29: x | I29: =SUM(I27:J28) -> 0
A31: 1. Расчеты (обоснования) выплат персоналу
A32: Код видов расходов ____119_________________________________________
A33: Источник финансового обеспечения_______Бюджет_________________________
A34: 1.4. Расчет (обоснование) страховых взносов на обязательное страхование в Пенсионный фонд Российской Федерации, Фонд социального страхования Российской Федерации, в Федеральный фонд обязательного медицинского страхования
A35: N п/п | B35: Наименование государственного внебюджетного фонда | G35: Размер базы для начисления страховых взносов, руб. | I35: Сумма взноса, руб.
A36: 1 | B36: 2 | G36: 3 | I36: 4
A37: 1 | B37: Страховые взносы в Пенсионный фонд Российской Федерации, всего | G37: X | I37: =I38 -> 0.00
B38: в том числе: | G38: =I19 -> 0.00 | I38: =I50/30.2*22 -> 0.00
B39: по ставке 22,0%
B40: по ставке 10,0%
B41: с применением пониженных тарифов взносов в Пенсионный фонд Российской Федерации для отдельных категорий плательщиков
A42: 2 | B42: Страховые взносы в Фонд социального страхования Российской Федерации, всего | G42: X | I42: =I43+I46 -> 0.00
B43: в том числе: | G43: =G38 -> 0.00 | I43: =I50/30.2*2.9 -> 0.00
B44: обязательное социальное страхование на случай временной нетрудоспособности и в связи с материнством по ставке 2,9%
B45: с применением ставки взносов в Фонд социального страхования Российской Федерации по ставке 0,0%
B46: обязательное социальное страхование от несчастных случаев на производстве и профессиональных заболеваний по ставке 0,2% | G46: =G43 -> 0.00 | I46: =I50/30.2*0.2 -> 0.00
B47: обязательное социальное страхование от несчастных случаев на производстве и профессиональных заболеваний по ставке 0, ___% <*>
B48: обязательное социальное страхование от несчастных случаев на производстве и профессиональных заболеваний по ставке 0,___% <*>
A49: 3 | B49: Страховые взносы в Федеральный фонд обязательного медицинского страхования, всего (по ставке 5,1%) | G49: =G46 -> 0.00 | I49: =I50/30.2*5.1 -> 0.00
A50: Итого: | G50: X | I50: 0.00
A52: 2. Расчеты (обоснования) расходов на социальные и иные выплаты населению
A53: Код видов расходов __112___________________________________________
A54: Источник финансового обеспечения________________________________
A55: N п/п | B55: Наименование показателя | F55: Размер одной выплаты, руб. | H55: Количество выплат в год | J55: Сумма, руб.
A56: 1 | B56: 2 | F56: 3 | H56: 4 | J56: 5
A57: 1 | B57: Выплаты льгот на ком.услуги | F57: =J57/H57 -> 0 | H57: 12
A58: ИТОГО | F58: X | H58: X | J58: =J57 -> 0
A60: 3. Расчеты (обоснования) расходов на уплату налогов, сборов и иных платежей
A61: Код видов расходов 851,852,853
A62: Источник финансового обеспечения_Бюджет_____________________
A64: N п/п | B64: Наименование расходов | E64: Налоговая база, руб. | G64: Ставка налога, % | I64: Сумма исчисленного налога, подлежащего уплате, руб.
A65: 1 | B65: 2 | E65: 3 | G65: 4 | I65: 5
A66: 1 | B66: Налог на имущество | E66: 999818.18 | G66: 2.2
A67: 2 | B67: Земельный налог | E67: =I67/G67*100 -> 0 | G67: 0.59
A68: 3 | B68: Экологический налог
A69: 4 | B69: Транспортный н-г
A70: Итого: | I70: =SUM(I66:J69) -> 0
A72: 6. Расчеты (обоснования) на закупку товаров, работ, услуг
A73: Код видов расходов 221,223,225,226,340
A74: Источник финансового обеспечения_______Бюджет
A75: 6.1. Расчет (обоснование) расходов на оплату услуг связи (221)
A76: N п/п | B76: Наименование расходов | E76: Количество номеров | F76: Количество платежей в год | H76: Стоимость за единицу, руб. | J76: Сумма, руб.
A77: 1 | B77: 2 | E77: 3 | F77: 4 | H77: 5 | J77: 6
A78: 1 | B78: Абонентская плата за номер | E78: 2 | F78: 12 | H78: =J78/F78 -> 0.00 | J78: 0.00
A79: 2 | B79: Предоставление мест.соед | E79: 2 | F79: 12 | H79: =J79/F79 -> 0.00
A80: 3 | B80: Огранич.исход.связи | E80: 2 | F80: 12 | H80: =J80/F80 -> 0.00
B81: Итого: | E81: X | F81: X | H81: X | J81: =SUM(J78:J80) -> 0.00
A83: 6.2. Расчет (обоснование) расходов на оплату транспортных услуг (222)
A84: N п/п | B84: Наименование расходов | E84: Количество услуг перевозки | G84: Цена услуги перевозки, руб. | I84: Сумма, руб. (гр.3 х гр.4)
A85: 1 | B85: 2 | E85: 3 | G85: 4 | I85: 5
A86: 1
A87: Итого: | I87: =I86 -> 0.00
A88: 6.3. Расчет (обоснование) расходов на оплату коммунальных услуг (223)
A89: N п/п | B89: Наименование показателя | D89: Размер потребления ресурсов | F89: Тариф (с учетом НДС), руб. | H89: Индексация, % | I89: Сумма, руб
A90: 1 | B90: 2 | D90: 3 | F90: 4 | H90: 5 | I90: 6
A91: 1 | B91: Электроснабжение | D91: =I91/F91 -> 0.00 | F91: 7.00
A92: 2 | B92: Теплоснабжение | D92: =I92/F92 -> 0.00 | F92: 1969.74
A93: 3 | B93: Откачка канализации
A94: 4 | B94: Водоснабжение
A95: Итого: | D95: X | F95: X | H95: X | I95: =SUM(I91:J94) -> 0.00
A96: 6.5. Расчет (обоснование) расходов на оплату работ, услуг по содержанию имущества (225)
A97: N п/п | B97: Наименование показателя | F97: Объект | H97: Количество работ (услуг) | I97: Стоимость работ (услуг), руб.
A98: 1 | B98: 2 | F98: 3 | H98: 4 | I98: 5
A99: 1 | B99: Техобслуживание охранной сигн. | F99: Школа,доу | H99: 12
A100: 2 | B100: Техобслуживание пожарной сигн. | F100: Школа,доу | H100: 12
A101: 3 | B101: Дезинфекция, дератизация | F101: Школа,доу | H101: 12
A102: 4 | B102: Содержание в чистоте помещений | F102: Школа,доу | H102: 12
A103: 5 | B103: Техобслуживание стрельца-монит | F103: Школа,доу | H103: 12
A104: 6 | B104: Электромонтажные работы | I104: 286850
A105: Итого: | F105: X | H105: X | I105: =SUM(I99:J104) -> 286850
A107: 6.6. Расчет (обоснование) расходов на оплату прочих работ, услуг (226)
A108: N п/п | B108: Наименование показателя | F108: Количество договоров | H108: Стоимость услуги, руб.
A109: 1 | B109: 2 | F109: 3 | H109: 4
A110: 1 | B110: ЭЦП | F110: Х | H110: 0
A111: 2 | B111: Монтаж КТС | F111: Х | H111: 0
B112: Питание | H112: 24000
A113: Итого: | F113: Х | H113: =SUM(H110:I112) -> 24000
A115: 6.7. Расчет (обоснование) расходов на приобретение основных средств и материальных запасов (340)
A116: N п/п | B116: Наименование расходов | F116: Количество | G116: Средняя стоимость, руб. | I116: Сумма, руб.
B117: 1 | F117: 2 | G117: 3 | I117: 4
A118: 1 | B118: Продукты питания | I118: 0
A119: 2 | B119: Содержание здания
A120: Итого: | G120: X | I120: =SUM(I118:J119) -> 0
B122: Резерв з/п
J125: =I19+I29+I50+J58+I70+J81+I95+I105+H113+I120+I122 -> 310,850.00

Sheet иные (расход)
A1: Утверждаю:
A2: Директор МБОУ «Ст-Озерсская оош» НМР
I4: на 01.07.2023
A5: РАСЧЕТЫ (ОБОСНОВАНИЯ) К ПЛАНУ ФИНАНСОВО-ХОЗЯЙСТВЕННОЙ ДЕЯТЕЛЬНОСТИ ГОСУДАРСТВЕННОГО УЧРЕЖДЕНИЯ (иные расход)
A6: 1. Расчеты (обоснования) выплат персоналу (строка 210)
A7: Код видов расходов ____________111
A8: Источник финансового обеспечения_______Иные
A9: 1.1. Расчеты (обоснования) расходов на оплату труда
A10: N п/п | B10: Должность, группа должностей | D10: Установленная численность, единиц | E10: Среднемесячный размер оплаты труда на одного работника, руб. | I10: Фонд оплаты труда в год, руб. (гр.3 х гр.4 х (1+ гр.8/100) х гр.9 х 12)
E11: всего | F11: в том числе:
F12: по должностному окладу | G12: по выплатам компенсационного характера | H12: по выплатам стимулирующего характера
A13: 1 | B13: 2 | D13: 3 | E13: 4 | F13: 5 | G13: 6 | H13: 7 | I13: 8
A14: 1 | B14: Директор | H14: =E14-F14-G14 -> 0.00 | I14: =E14*12*D14 -> 0.00
A15: 2 | B15: Заместители директора | H15: =E15-F15-G15 -> 0.00 | I15: =E15*12*D15 -> 0.00
A16: 3 | B16: Педагогические работники | H16: 0.00 | I16: 0.00
A17: 4 | B17: Учебно-вспомогательный перс. | H17: 0.00 | I17: =E17*12*D17 -> 0.00
A18: 5 | B18: Обслуживающий персонал | H18: 0.00 | I18: =E18*12*D18 -> 0.00
A19: ИТОГО | D19: X | E19: Х | F19: X | G19: 3.00 | H19: X | I19: =SUM(I14:J18) -> 0.00
A21: 1. Расчеты (обоснования) выплат персоналу (строка 210)
A22: Код видов расходов _____________________________________________ | F22: 112
A23: Источник финансового обеспечения________________________________ | F23: Бюджет
A24: 1.2. Расчеты (обоснования) выплат персоналу при направлении в служебные командировки
A25: N п/п | B25: Наименование расходов | E25: Средний размер выплаты на одного работника в день, руб. | G25: Количество работников, чел. | H25: Количество дней | I25: Сумма, руб. (гр. 3 х гр.4 х гр.5)
A26: 1 | B26: 2 | E26: 3 | G26: 4 | H26: 5 | I26: 6
A27: 1 | B27: Командировачные
A29: ИТОГО | E29: x | G29: x | H29: x | I29: =SUM(I27:J28) -> 0
A31: 1. Расчеты (обоснования) выплат персоналу
A32: Код видов расходов ____119_________________________________________
A33: Источник финансового обеспечения_______Бюджет_________________________
A34: 1.4. Расчет (обоснование) страховых взносов на обязательное страхование в Пенсионный фонд Российской Федерации, Фонд социального страхования Российской Федерации, в Федеральный фонд обязательного медицинского страхования
A35: N п/п | B35: Наименование государственного внебюджетного фонда | G35: Размер базы для начисления страховых взносов, руб. | I35: Сумма взноса, руб.
A36: 1 | B36: 2 | G36: 3 | I36: 4
A37: 1 | B37: Страховые взносы в Пенсионный фонд Российской Федерации, всего | G37: X | I37: =I38 -> 0.00
B38: в том числе: | G38: =I19 -> 0.00 | I38: =I50/30.2*22 -> 0.00
B39: по ставке 22,0%
B40: по ставке 10,0%
B41: с применением пониженных тарифов взносов в Пенсионный фонд Российской Федерации для отдельных категорий плательщиков
A42: 2 | B42: Страховые взносы в Фонд социального страхования Российской Федерации, всего | G42: X | I42: =I43+I46 -> 0.00
B43: в том числе: | G43: =G38 -> 0.00 | I43: =I50/30.2*2.9 -> 0.00
B44: обязательное социальное страхование на случай временной нетрудоспособности и в связи с материнством по ставке 2,9%
B45: с применением ставки взносов в Фонд социального страхования Российской Федерации по ставке 0,0%
B46: обязательное социальное страхование от несчастных случаев на производстве и профессиональных заболеваний по ставке 0,2% | G46: =G43 -> 0.00 | I46: =I50/30.2*0.2 -> 0.00
B47: обязательное социальное страхование от несчастных случаев на производстве и профессиональных заболеваний по ставке 0, ___% <*>
B48: обязательное социальное страхование от несчастных случаев на производстве и профессиональных заболеваний по ставке 0,___% <*>
A49: 3 | B49: Страховые взносы в Федеральный фонд обязательного медицинского страхования, всего (по ставке 5,1%) | G49: =G46 -> 0.00 | I49: =I50/30.2*5.1 -> 0.00
A50: Итого: | G50: X | I50: 0.00
A52: 2. Расчеты (обоснования) расходов на социальные и иные выплаты населению
A53: Код видов расходов __112___________________________________________
A54: Источник финансового обеспечения________________________________
A55: N п/п | B55: Наименование показателя | F55: Размер одной выплаты, руб. | H55: Количество выплат в год | J55: Сумма, руб.
A56: 1 | B56: 2 | F56: 3 | H56: 4 | J56: 5
A57: 1 | B57: Выплаты льгот на ком.услуги | F57: =J57/H57 -> 0 | H57: 12
A58: ИТОГО | F58: X | H58: X | J58: =J57 -> 0
A60: 3. Расчеты (обоснования) расходов на уплату налогов, сборов и иных платежей
A61: Код видов расходов 851,852,853
A62: Источник финансового обеспечения_Бюджет_____________________
A64: N п/п | B64: Наименование расходов | E64: Налоговая база, руб. | G64: Ставка налога, % | I64: Сумма исчисленного налога, подлежащего уплате, руб.
A65: 1 | B65: 2 | E65: 3 | G65: 4 | I65: 5
A66: 1 | B66: Налог на имущество | E66: 999818.18 | G66: 2.2
A67: 2 | B67: Земельный налог | E67: =I67/G67*100 -> 0 | G67: 0.59
A68: 3 | B68: Экологический налог
A69: 4 | B69: Транспортный н-г
A70: Итого: | I70: =SUM(I66:J69) -> 0
A72: 6. Расчеты (обоснования) на закупку товаров, работ, услуг
A73: Код видов расходов 221,223,225,226,340
A74: Источник финансового обеспечения_______Бюджет
A75: 6.1. Расчет (обоснование) расходов на оплату услуг связи (221)
A76: N п/п | B76: Наименование расходов | E76: Количество номеров | F76: Количество платежей в год | H76: Стоимость за единицу, руб. | J76: Сумма, руб.
A77: 1 | B77: 2 | E77: 3 | F77: 4 | H77: 5 | J77: 6
A78: 1 | B78: Абонентская плата за номер | E78: 2 | F78: 12 | H78: =J78/F78 -> 0.00 | J78: 0.00
A79: 2 | B79: Предоставление мест.соед | E79: 2 | F79: 12 | H79: =J79/F79 -> 0.00
A80: 3 | B80: Огранич.исход.связи | E80: 2 | F80: 12 | H80: =J80/F80 -> 0.00
B81: Итого: | E81: X | F81: X | H81: X | J81: =SUM(J78:J80) -> 0.00
A83: 6.2. Расчет (обоснование) расходов на оплату транспортных услуг (222)
A84: N п/п | B84: Наименование расходов | E84: Количество услуг перевозки | G84: Цена услуги перевозки, руб. | I84: Сумма, руб. (гр.3 х гр.4)
A85: 1 | B85: 2 | E85: 3 | G85: 4 | I85: 5
A86: 1
A87: Итого: | I87: =I86 -> 0.00
A88: 6.3. Расчет (обоснование) расходов на оплату коммунальных услуг (223)
A89: N п/п | B89: Наименование показателя | D89: Размер потребления ресурсов | F89: Тариф (с учетом НДС), руб. | H89: Индексация, % | I89: Сумма, руб
A90: 1 | B90: 2 | D90: 3 | F90: 4 | H90: 5 | I90: 6
A91: 1 | B91: Электроснабжение | D91: =I91/F91 -> 0.00 | F91: 7.00
A92: 2 | B92: Теплоснабжение | D92: =I92/F92 -> 0.00 | F92: 1969.74
A93: 3 | B93: Откачка канализации
A94: 4 | B94: Водоснабжение
A95: Итого: | D95: X | F95: X | H95: X | I95: =SUM(I91:J94) -> 0.00
A96: 6.5. Расчет (обоснование) расходов на оплату работ, услуг по содержанию имущества (225)
A97: N п/п | B97: Наименование показателя | F97: Объект | H97: Количество работ (услуг) | I97: Стоимость работ (услуг), руб.
A98: 1 | B98: 2 | F98: 3 | H98: 4 | I98: 5
A99: 1 | B99: Техобслуживание охранной сигн. | F99: Школа,доу | H99: 12
A100: 2 | B100: Техобслуживание пожарной сигн. | F100: Школа,доу | H100: 12
A101: 3 | B101: Дезинфекция, дератизация | F101: Школа,доу | H101: 12
A102: 4 | B102: Содержание в чистоте помещений | F102: Школа,доу | H102: 12
A103: 5 | B103: Техобслуживание стрельца-монит | F103: Школа,доу | H103: 12
A104: 6 | B104: Электромонтажные работы | I104: 286850
A105: Итого: | F105: X | H105: X | I105: =SUM(I99:J104) -> 286850
A107: 6.6. Расчет (обоснование) расходов на оплату прочих работ, услуг (226)
A108: N п/п | B108: Наименование показателя | F108: Количество договоров | H108: Стоимость услуги, руб.
A109: 1 | B109: 2 | F109: 3 | H109: 4
A110: 1 | B110: ЭЦП | F110: Х | H110: 0
A111: 2 | B111: Монтаж КТС | F111: Х | H111: 0
B112: Питание | H112: 37760
A113: Итого: | F113: Х | H113: =SUM(H110:I112) -> 37760
A115: 6.7. Расчет (обоснование) расходов на приобретение основных средств и материальных запасов (340)
A116: N п/п | B116: Наименование расходов | F116: Количество | G116: Средняя стоимость, руб. | I116: Сумма, руб.
B117: 1 | F117: 2 | G117: 3 | I117: 4
A118: 1 | B118: Продукты питания | I118: 0
A119: 2 | B119: Содержание здания
A120: Итого: | G120: X | I120: =SUM(I118:J119) -> 0
B122: Резерв з/п
J125: =I19+I29+I50+J58+I70+J81+I95+I105+H113+I120+I122 -> 324,610.00

Sheet внебюджет доход
A1: Утверждаю:
A2: Директор МБОУ «Ст-Озерсская оош» НМР
I4: на 01.07.2023
A5: РАСЧЕТЫ (ОБОСНОВАНИЯ) К ПЛАНУ ФИНАНСОВО-ХОЗЯЙСТВЕННОЙ ДЕЯТЕЛЬНОСТИ ГОСУДАРСТВЕННОГО УЧРЕЖДЕНИЯ (доход по внебюджетной деятельности)
A6: 1. Расчеты (обоснования) выплат персоналу (строка 210)
A7: Код видов расходов ____________111
A8: Источник финансового обеспечения_______Иные
A9: 1.1. Расчеты (обоснования) расходов на оплату труда
A10: N п/п | B10: Должность, группа должностей | D10: Установленная численность, единиц | E10: Среднемесячный размер оплаты труда на одного работника, руб. | I10: Фонд оплаты труда в год, руб. (гр.3 х гр.4 х (1+ гр.8/100) х гр.9 х 12)
E11: всего | F11: в том числе:
F12: по должностному окладу | G12: по выплатам компенсационного характера | H12: по выплатам стимулирующего характера
A13: 1 | B13: 2 | D13: 3 | E13: 4 | F13: 5 | G13: 6 | H13: 7 | I13: 8
A14: 1 | B14: Директор | H14: =E14-F14-G14 -> 0.00 | I14: =E14*12*D14 -> 0.00
A15: 2 | B15: Заместители директора | H15: =E15-F15-G15 -> 0.00 | I15: =E15*12*D15 -> 0.00
A16: 3 | B16: Педагогические работники | H16: 0.00 | I16: 0.00
A17: 4 | B17: Учебно-вспомогательный перс. | H17: 0.00 | I17: =E17*12*D17 -> 0.00
A18: 5 | B18: Обслуживающий персонал | H18: 0.00 | I18: =E18*12*D18 -> 0.00
A19: ИТОГО | D19: X | E19: Х | F19: X | G19: 3.00 | H19: X | I19: =SUM(I14:J18) -> 0.00
A21: 1. Расчеты (обоснования) выплат персоналу (строка 210)
A22: Код видов расходов _____________________________________________ | F22: 112
A23: Источник финансового обеспечения________________________________ | F23: Бюджет
A24: 1.2. Расчеты (обоснования) выплат персоналу при направлении в служебные командировки
A25: N п/п | B25: Наименование расходов | E25: Средний размер выплаты на одного работника в день, руб. | G25: Количество работников, чел. | H25: Количество дней | I25: Сумма, руб. (гр. 3 х гр.4 х гр.5)
A26: 1 | B26: 2 | E26: 3 | G26: 4 | H26: 5 | I26: 6
A27: 1 | B27: Командировачные
A29: ИТОГО | E29: x | G29: x | H29: x | I29: =SUM(I27:J28) -> 0
A31: 1. Расчеты (обоснования) выплат персоналу
A32: Код видов расходов ____119_________________________________________
A33: Источник финансового обеспечения_______Бюджет_________________________
A34: 1.4. Расчет (обоснование) страховых взносов на обязательное страхование в Пенсионный фонд Российской Федерации, Фонд социального страхования Российской Федерации, в Федеральный фонд обязательного медицинского страхования
A35: N п/п | B35: Наименование государственного внебюджетного фонда | G35: Размер базы для начисления страховых взносов, руб. | I35: Сумма взноса, руб.
A36: 1 | B36: 2 | G36: 3 | I36: 4
A37: 1 | B37: Страховые взносы в Пенсионный фонд Российской Федерации, всего | G37: X | I37: =I38 -> 0.00
B38: в том числе: | G38: =I19 -> 0.00 | I38: =I50/30.2*22 -> 0.00
B39: по ставке 22,0%
B40: по ставке 10,0%
B41: с применением пониженных тарифов взносов в Пенсионный фонд Российской Федерации для отдельных категорий плательщиков
A42: 2 | B42: Страховые взносы в Фонд социального страхования Российской Федерации, всего | G42: X | I42: =I43+I46 -> 0.00
B43: в том числе: | G43: =G38 -> 0.00 | I43: =I50/30.2*2.9 -> 0.00
B44: обязательное социальное страхование на случай временной нетрудоспособности и в связи с материнством по ставке 2,9%
B45: с применением ставки взносов в Фонд социального страхования Российской Федерации по ставке 0,0%
B46: обязательное социальное страхование от несчастных случаев на производстве и профессиональных заболеваний по ставке 0,2% | G46: =G43 -> 0.00 | I46: =I50/30.2*0.2 -> 0.00
B47: обязательное социальное страхование от несчастных случаев на производстве и профессиональных заболеваний по ставке 0, ___% <*>
B48: обязательное социальное страхование от несчастных случаев на производстве и профессиональных заболеваний по ставке 0,___% <*>
A49: 3 | B49: Страховые взносы в Федеральный фонд обязательного медицинского страхования, всего (по ставке 5,1%) | G49: =G46 -> 0.00 | I49: =I50/30.2*5.1 -> 0.00
A50: Итого: | G50: X | I50: 0.00
A52: 2. Расчеты (обоснования) расходов на социальные и иные выплаты населению
A53: Код видов расходов __112___________________________________________
A54: Источник финансового обеспечения________________________________
A55: N п/п | B55: Наименование показателя | F55: Размер одной выплаты, руб. | H55: Количество выплат в год | J55: Сумма, руб.
A56: 1 | B56: 2 | F56: 3 | H56: 4 | J56: 5
A57: 1 | B57: Выплаты льгот на ком.услуги | F57: =J57/H57 -> 0 | H57: 12
A58: ИТОГО | F58: X | H58: X | J58: =J57 -> 0
A60: 3. Расчеты (обоснования) расходов на уплату налогов, сборов и иных платежей
A61: Код видов расходов 851,852,853
A62: Источник финансового обеспечения_Бюджет_____________________
A64: N п/п | B64: Наименование расходов | E64: Налоговая база, руб. | G64: Ставка налога, % | I64: Сумма исчисленного налога, подлежащего уплате, руб.
A65: 1 | B65: 2 | E65: 3 | G65: 4 | I65: 5
A66: 1 | B66: Налог на имущество | E66: 999818.18 | G66: 2.2
A67: 2 | B67: Земельный налог | E67: =I67/G67*100 -> 0 | G67: 0.59
A68: 3 | B68: Экологический налог
A69: 4 | B69: Транспортный н-г
A70: Итого: | I70: =SUM(I66:J69) -> 0
A72: 6. Расчеты (обоснования) на закупку товаров, работ, услуг
A73: Код видов расходов 221,223,225,226,340
A74: Источник финансового обеспечения_______Бюджет
A75: 6.1. Расчет (обоснование) расходов на оплату услуг связи (221)
A76: N п/п | B76: Наименование расходов | E76: Количество номеров | F76: Количество платежей в год | H76: Стоимость за единицу, руб. | J76: Сумма, руб.
A77: 1 | B77: 2 | E77: 3 | F77: 4 | H77: 5 | J77: 6
A78: 1 | B78: Абонентская плата за номер | E78: 2 | F78: 12 | H78: =J78/F78 -> 0.00
A79: 2 | B79: Предоставление мест.соед | E79: 2 | F79: 12 | H79: =J79/F79 -> 0.00
A80: 3 | B80: Огранич.исход.связи | E80: 2 | F80: 12 | H80: =J80/F80 -> 0.00
B81: Итого: | E81: X | F81: X | H81: X | J81: =SUM(J78:J80) -> 0.00
A83: 6.2. Расчет (обоснование) расходов на оплату транспортных услуг (222)
A84: N п/п | B84: Наименование расходов | E84: Количество услуг перевозки | G84: Цена услуги перевозки, руб. | I84: Сумма, руб. (гр.3 х гр.4)
A85: 1 | B85: 2 | E85: 3 | G85: 4 | I85: 5
A86: 1
A87: Итого: | I87: =I86 -> 0.00
A88: 6.3. Расчет (обоснование) расходов на оплату коммунальных услуг (223)
A89: N п/п | B89: Наименование показателя | D89: Размер потребления ресурсов | F89: Тариф (с учетом НДС), руб. | H89: Индексация, % | I89: Сумма, руб
A90: 1 | B90: 2 | D90: 3 | F90: 4 | H90: 5 | I90: 6
A91: 1 | B91: Электроснабжение | D91: =I91/F91 -> 0.00 | F91: 7.00
A92: 2 | B92: Теплоснабжение | D92: =I92/F92 -> 6.70 | F92: 1969.74 | I92: 13190.12
A93: 3 | B93: Откачка канализации
A94: 4 | B94: Водоснабжение
A95: Итого: | D95: X | F95: X | H95: X | I95: =SUM(I91:J94) -> 13190.12
A96: 6.5. Расчет (обоснование) расходов на оплату работ, услуг по содержанию имущества (225)
A97: N п/п | B97: Наименование показателя | F97: Объект | H97: Количество работ (услуг) | I97: Стоимость работ (услуг), руб.
A98: 1 | B98: 2 | F98: 3 | H98: 4 | I98: 5
A99: 1 | B99: Техобслуживание охранной сигн. | F99: Школа,доу | H99: 12
A100: 2 | B100: Техобслуживание пожарной сигн. | F100: Школа,доу | H100: 12
A101: 3 | B101: Дезинфекция, дератизация | F101: Школа,доу | H101: 12
A102: 4 | B102: Содержание в чистоте помещений | F102: Школа,доу | H102: 12
A103: 5 | B103: Техобслуживание стрельца-монит | F103: Школа,доу | H103: 12
A104: 6 | B104: Техобслуживание видеонаблюдения
A105: Итого: | F105: X | H105: X | I105: =SUM(I99:J104) -> 0
A107: 6.6. Расчет (обоснование) расходов на оплату прочих работ, услуг (226)
A108: N п/п | B108: Наименование показателя | F108: Количество договоров | H108: Стоимость услуги, руб.
A109: 1 | B109: 2 | F109: 3 | H109: 4
A110: 1 | B110: ЭЦП | F110: Х | H110: 0
A111: 2 | B111: Монтаж КТС | F111: Х | H111: 0
A112: 3 | B112: Питание | H112: 15000
A113: Итого: | F113: Х | H113: =SUM(H110:I112) -> 15000
A115: 6.7. Расчет (обоснование) расходов на приобретение основных средств и материальных запасов (340)
A116: N п/п | B116: Наименование расходов | F116: Количество | G116: Средняя стоимость, руб. | I116: Сумма, руб.
B117: 1 | F117: 2 | G117: 3 | I117: 4
A118: 1 | B118: Продукты питания | I118: 0
A119: 2 | B119: Содержание здания | I119: 5000
A120: Итого: | G120: X | I120: =SUM(I118:J119) -> 5000
B122: Резерв з/п
J125: =I19+I29+I50+J58+I70+J81+I95+I105+H113+I120+I122 -> 33,190.12

Sheet внебюджет расход
A1: Утверждаю:
A2: Директор МБОУ «Ст-Озерсская оош» НМР
I4: на 01.07.2023
A5: РАСЧЕТЫ (ОБОСНОВАНИЯ) К ПЛАНУ ФИНАНСОВО-ХОЗЯЙСТВЕННОЙ ДЕЯТЕЛЬНОСТИ ГОСУДАРСТВЕННОГО УЧРЕЖДЕНИЯ (расход по внебюджетной деятельности)
A6: 1. Расчеты (обоснования) выплат персоналу (строка 210)
A7: Код видов расходов ____________111
A8: Источник финансового обеспечения_______Иные
A9: 1.1. Расчеты (обоснования) расходов на оплату труда
A10: N п/п | B10: Должность, группа должностей | D10: Установленная численность, единиц | E10: Среднемесячный размер оплаты труда на одного работника, руб. | I10: Фонд оплаты труда в год, руб. (гр.3 х гр.4 х (1+ гр.8/100) х гр.9 х 12)
E11: всего | F11: в том числе:
F12: по должностному окладу | G12: по выплатам компенсационного характера | H12: по выплатам стимулирующего характера
A13: 1 | B13: 2 | D13: 3 | E13: 4 | F13: 5 | G13: 6 | H13: 7 | I13: 8
A14: 1 | B14: Директор | H14: =E14-F14-G14 -> 0.00 | I14: =E14*12*D14 -> 0.00
A15: 2 | B15: Заместители директора | H15: =E15-F15-G15 -> 0.00 | I15: =E15*12*D15 -> 0.00
A16: 3 | B16: Педагогические работники | H16: 0.00 | I16: 0.00
A17: 4 | B17: Учебно-вспомогательный перс. | H17: 0.00 | I17: =E17*12*D17 -> 0.00
A18: 5 | B18: Обслуживающий персонал | H18: 0.00 | I18: =E18*12*D18 -> 0.00
A19: ИТОГО | D19: X | E19: Х | F19: X | G19: 3.00 | H19: X | I19: =SUM(I14:J18) -> 0.00
A21: 1. Расчеты (обоснования) выплат персоналу (строка 210)
A22: Код видов расходов _____________________________________________ | F22: 112
A23: Источник финансового обеспечения________________________________ | F23: Бюджет
A24: 1.2. Расчеты (обоснования) выплат персоналу при направлении в служебные командировки
A25: N п/п | B25: Наименование расходов | E25: Средний размер выплаты на одного работника в день, руб. | G25: Количество работников, чел. | H25: Количество дней | I25: Сумма, руб. (гр. 3 х гр.4 х гр.5)
A26: 1 | B26: 2 | E26: 3 | G26: 4 | H26: 5 | I26: 6
A27: 1 | B27: Командировачные
A29: ИТОГО | E29: x | G29: x | H29: x | I29: =SUM(I27:J28) -> 0
A31: 1. Расчеты (обоснования) выплат персоналу
A32: Код видов расходов ____119_________________________________________
A33: Источник финансового обеспечения_______Бюджет_________________________
A34: 1.4. Расчет (обоснование) страховых взносов на обязательное страхование в Пенсионный фонд Российской Федерации, Фонд социального страхования Российской Федерации, в Федеральный фонд обязательного медицинского страхования
A35: N п/п | B35: Наименование государственного внебюджетного фонда | G35: Размер базы для начисления страховых взносов, руб. | I35: Сумма взноса, руб.
A36: 1 | B36: 2 | G36: 3 | I36: 4
A37: 1 | B37: Страховые взносы в Пенсионный фонд Российской Федерации, всего | G37: X | I37: =I38 -> 0.00
B38: в том числе: | G38: =I19 -> 0.00 | I38: =I50/30.2*22 -> 0.00
B39: по ставке 22,0%
B40: по ставке 10,0%
B41: с применением пониженных тарифов взносов в Пенсионный фонд Российской Федерации для отдельных категорий плательщиков
A42: 2 | B42: Страховые взносы в Фонд социального страхования Российской Федерации, всего | G42: X | I42: =I43+I46 -> 0.00
B43: в том числе: | G43: =G38 -> 0.00 | I43: =I50/30.2*2.9 -> 0.00
B44: обязательное социальное страхование на случай временной нетрудоспособности и в связи с материнством по ставке 2,9%
B45: с применением ставки взносов в Фонд социального страхования Российской Федерации по ставке 0,0%
B46: обязательное социальное страхование от несчастных случаев на производстве и профессиональных заболеваний по ставке 0,2% | G46: =G43 -> 0.00 | I46: =I50/30.2*0.2 -> 0.00
B47: обязательное социальное страхование от несчастных случаев на производстве и профессиональных заболеваний по ставке 0, ___% <*>
B48: обязательное социальное страхование от несчастных случаев на производстве и профессиональных заболеваний по ставке 0,___% <*>
A49: 3 | B49: Страховые взносы в Федеральный фонд обязательного медицинского страхования, всего (по ставке 5,1%) | G49: =G46 -> 0.00 | I49: =I50/30.2*5.1 -> 0.00
A50: Итого: | G50: X | I50: 0.00
A52: 2. Расчеты (обоснования) расходов на социальные и иные выплаты населению
A53: Код видов расходов __112___________________________________________
A54: Источник финансового обеспечения________________________________
A55: N п/п | B55: Наименование показателя | F55: Размер одной выплаты, руб. | H55: Количество выплат в год | J55: Сумма, руб.
A56: 1 | B56: 2 | F56: 3 | H56: 4 | J56: 5
A57: 1 | B57: Выплаты льгот на ком.услуги | F57: =J57/H57 -> 0 | H57: 12
A58: ИТОГО | F58: X | H58: X | J58: =J57 -> 0
A60: 3. Расчеты (обоснования) расходов на уплату налогов, сборов и иных платежей
A61: Код видов расходов 851,852,853
A62: Источник финансового обеспечения_Бюджет_____________________
A64: N п/п | B64: Наименование расходов | E64: Налоговая база, руб. | G64: Ставка налога, % | I64: Сумма исчисленного налога, подлежащего уплате, руб.
A65: 1 | B65: 2 | E65: 3 | G65: 4 | I65: 5
A66: 1 | B66: Налог на имущество | E66: 999818.18 | G66: 2.2
A67: 2 | B67: Земельный налог | E67: =I67/G67*100 -> 0 | G67: 0.59
A68: 3 | B68: Экологический налог
A69: 4 | B69: Транспортный н-г
A70: Итого: | I70: =SUM(I66:J69) -> 0
A72: 6. Расчеты (обоснования) на закупку товаров, работ, услуг
A73: Код видов расходов 221,223,225,226,340
A74: Источник финансового обеспечения_______Бюджет
A75: 6.1. Расчет (обоснование) расходов на оплату услуг связи (221)
A76: N п/п | B76: Наименование расходов | E76: Количество номеров | F76: Количество платежей в год | H76: Стоимость за единицу, руб. | J76: Сумма, руб.
A77: 1 | B77: 2 | E77: 3 | F77: 4 | H77: 5 | J77: 6
A78: 1 | B78: Абонентская плата за номер | E78: 2 | F78: 12 | H78: =J78/F78 -> 0.00
A79: 2 | B79: Предоставление мест.соед | E79: 2 | F79: 12 | H79: =J79/F79 -> 0.00
A80: 3 | B80: Огранич.исход.связи | E80: 2 | F80: 12 | H80: =J80/F80 -> 0.00
B81: Итого: | E81: X | F81: X | H81: X | J81: =SUM(J78:J80) -> 0.00
A83: 6.2. Расчет (обоснование) расходов на оплату транспортных услуг (222)
A84: N п/п | B84: Наименование расходов | E84: Количество услуг перевозки | G84: Цена услуги перевозки, руб. | I84: Сумма, руб. (гр.3 х гр.4)
A85: 1 | B85: 2 | E85: 3 | G85: 4 | I85: 5
A86: 1
A87: Итого: | I87: =I86 -> 0.00
A88: 6.3. Расчет (обоснование) расходов на оплату коммунальных услуг (223)
A89: N п/п | B89: Наименование показателя | D89: Размер потребления ресурсов | F89: Тариф (с учетом НДС), руб. | H89: Индексация, % | I89: Сумма, руб
A90: 1 | B90: 2 | D90: 3 | F90: 4 | H90: 5 | I90: 6
A91: 1 | B91: Электроснабжение | D91: =I91/F91 -> 0.00 | F91: 7.00
A92: 2 | B92: Теплоснабжение | D92: =I92/F92 -> 49.72 | F92: 1969.74 | I92: 97943.71
A93: 3 | B93: Откачка канализации
A94: 4 | B94: Водоснабжение
A95: Итого: | D95: X | F95: X | H95: X | I95: =SUM(I91:J94) -> 97943.71
A96: 6.5. Расчет (обоснование) расходов на оплату работ, услуг по содержанию имущества (225)
A97: N п/п | B97: Наименование показателя | F97: Объект | H97: Количество работ (услуг) | I97: Стоимость работ (услуг), руб.
A98: 1 | B98: 2 | F98: 3 | H98: 4 | I98: 5
A99: 1 | B99: Техобслуживание охранной сигн. | F99: Школа,доу | H99: 12
A100: 2 | B100: Техобслуживание пожарной сигн. | F100: Школа,доу | H100: 12
A101: 3 | B101: Дезинфекция, дератизация | F101: Школа,доу | H101: 12
A102: 4 | B102: Содержание в чистоте помещений | F102: Школа,доу | H102: 12
A103: 5 | B103: Техобслуживание стрельца-монит | F103: Школа,доу | H103: 12
A104: 6 | B104: Техобслуживание видеонаблюдения
A105: Итого: | F105: X | H105: X | I105: =SUM(I99:J104) -> 0
A107: 6.6. Расчет (обоснование) расходов на оплату прочих работ, услуг (226)
A108: N п/п | B108: Наименование показателя | F108: Количество договоров | H108: Стоимость услуги, руб.
A109: 1 | B109: 2 | F109: 3 | H109: 4
A110: 1 | B110: ЭЦП | F110: Х | H110: 0
A111: 2 | B111: Монтаж КТС | F111: Х | H111: 0
A112: 3 | B112: Питание | H112: 15288.34
A113: Итого: | F113: Х | H113: =SUM(H110:I112) -> 15288.34
A115: 6.7. Расчет (обоснование) расходов на приобретение основных средств и материальных запасов (340)
A116: N п/п | B116: Наименование расходов | F116: Количество | G116: Средняя стоимость, руб. | I116: Сумма, руб.
B117: 1 | F117: 2 | G117: 3 | I117: 4
A118: 1 | B118: Моющие | I118: 10822
A119: 2 | B119: Содержание здания | I119: 5000
A120: Итого: | G120: X | I120: =SUM(I118:J119) -> 15822
B122: Резерв з/п
J125: =I19+I29+I50+J58+I70+J81+I95+I105+H113+I120+I122 -> 129,054.05
